[Event "Titled Tuesday Blitz August 24 2021"]
[White "Gubajdullin, Alexei"]
[Black "Krysa, Leandro"]
[WhiteFideId "4141202"]
[BlackFideId "116807"]
[WhiteElo "2358"]
[BlackElo "2490"]
[Result "0-1"]
[Round "05"]
[TimeControl "180+1"]
[Date "2021.08.24"]
[WhiteClock "0:00:08"]
[BlackClock "0:00:13"]

1. d4 {[%clk 0:03:00]}  Nf6 {[%clk 0:02:59]} 2. Bf4 {[%clk 0:03:00]}  g6 {[%clk 0:02:57]} 3. e3 {[%clk 0:03:00]}  Bg7 {[%clk 0:02:57]} 4. Nf3 {[%clk 0:03:00]}  O-O {[%clk 0:02:57]} 5. Be2 {[%clk 0:03:00]}  c5 {[%clk 0:02:57]} 6. O-O {[%clk 0:03:01]}  b6 {[%clk 0:02:56]} 7. a4 {[%clk 0:03:00]}  cxd4 {[%clk 0:02:46]} 8. exd4 {[%clk 0:02:59]}  a6 {[%clk 0:02:46]} 9. c3 {[%clk 0:02:57]}  d6 {[%clk 0:02:45]} 10. Nbd2 {[%clk 0:02:56]}  Nbd7 {[%clk 0:02:45]} 11. Nc4 {[%clk 0:02:56]}  Bb7 {[%clk 0:02:44]} 12. Nfd2 {[%clk 0:02:56]}  Bc6 {[%clk 0:02:38]} 13. Bf3 {[%clk 0:02:55]}  Qc8 {[%clk 0:02:38]} 14. Re1 {[%clk 0:02:49]}  Re8 {[%clk 0:02:35]} 15. h3 {[%clk 0:02:39]}  Qb7 {[%clk 0:02:31]} 16. Qb3 {[%clk 0:02:27]}  Bxf3 {[%clk 0:02:19]} 17. Nxf3 {[%clk 0:02:26]}  Qd5 {[%clk 0:02:15]} 18. Ra3 {[%clk 0:02:23]}  Rab8 {[%clk 0:02:14]} 19. Ne3 {[%clk 0:02:14]}  Qe4 {[%clk 0:01:57]} 20. Ng5 {[%clk 0:02:11]}  Qxf4 {[%clk 0:01:54]} 21. Qxf7+ {[%clk 0:02:03]}  Kh8 {[%clk 0:01:53]} 22. Qxg7+ {[%clk 0:01:51]}  Kxg7 {[%clk 0:01:53]} 23. Ne6+ {[%clk 0:01:52]}  Kf7 {[%clk 0:01:53]} 24. Nxf4 {[%clk 0:01:53]}  Rb7 {[%clk 0:01:48]} 25. Rb3 {[%clk 0:01:44]}  Reb8 {[%clk 0:01:47]} 26. Ned5 {[%clk 0:01:42]}  Nxd5 {[%clk 0:01:42]} 27. Nxd5 {[%clk 0:01:42]}  e6 {[%clk 0:01:42]} 28. Nb4 {[%clk 0:01:41]}  Ra8 {[%clk 0:01:41]} 29. Nd3 {[%clk 0:01:40]}  Nf6 {[%clk 0:01:33]} 30. h4 {[%clk 0:01:38]}  Nd5 {[%clk 0:01:29]} 31. g3 {[%clk 0:01:35]}  b5 {[%clk 0:01:28]} 32. Ra1 {[%clk 0:01:33]}  Rab8 {[%clk 0:01:21]} 33. axb5 {[%clk 0:01:33]}  axb5 {[%clk 0:01:19]} 34. Ra6 {[%clk 0:01:33]}  Ke7 {[%clk 0:01:11]} 35. Nb4 {[%clk 0:01:30]}  Nxb4 {[%clk 0:01:05]} 36. Rxb4 {[%clk 0:01:30]}  d5 {[%clk 0:01:06]} 37. Kg2 {[%clk 0:01:27]}  Rb6 {[%clk 0:01:04]} 38. Rxb6 {[%clk 0:01:09]}  Rxb6 {[%clk 0:01:03]} 39. h5 {[%clk 0:01:05]}  gxh5 {[%clk 0:00:56]} 40. Kh3 {[%clk 0:01:05]}  Kf6 {[%clk 0:00:57]} 41. Kh4 {[%clk 0:01:05]}  Kg6 {[%clk 0:00:57]} 42. f3 {[%clk 0:00:59]}  Rb8 {[%clk 0:00:47]} 43. f4 {[%clk 0:00:55]}  Rb7 {[%clk 0:00:41]} 44. b3 {[%clk 0:00:46]}  Rc7 {[%clk 0:00:38]} 45. Rxb5 {[%clk 0:00:46]}  Rxc3 {[%clk 0:00:38]} 46. Rb6 {[%clk 0:00:38]}  Re3 {[%clk 0:00:35]} 47. Rb8 {[%clk 0:00:27]}  Kf5 {[%clk 0:00:29]} 48. Rg8 {[%clk 0:00:23]}  Ke4 {[%clk 0:00:25]} 49. Rg5 {[%clk 0:00:20]}  Kxd4 {[%clk 0:00:24]} 50. Kxh5 {[%clk 0:00:19]}  Kc3 {[%clk 0:00:16]} 51. Kh6 {[%clk 0:00:17]}  d4 {[%clk 0:00:15]} 52. Rc5+ {[%clk 0:00:11]}  Kxb3 {[%clk 0:00:15]} 53. g4 {[%clk 0:00:09]}  d3 {[%clk 0:00:15]} 54. Rc1 {[%clk 0:00:07]}  Re4 {[%clk 0:00:10]} 55. Kxh7 {[%clk 0:00:06]}  Rxf4 {[%clk 0:00:09]} 56. g5 {[%clk 0:00:05]}  d2 {[%clk 0:00:09]} 57. Rd1 {[%clk 0:00:05]}  Kc2 {[%clk 0:00:09]} 58. Rxd2+ {[%clk 0:00:05]}  Kxd2 {[%clk 0:00:09]} 59. g6 {[%clk 0:00:06]}  Rg4 {[%clk 0:00:09]} 60. g7 {[%clk 0:00:06]}  Rxg7+ {[%clk 0:00:09]} 61. Kxg7 {[%clk 0:00:05]}  e5 {[%clk 0:00:10]} 62. Kf6 {[%clk 0:00:06]}  e4 {[%clk 0:00:11]} 63. Kf5 {[%clk 0:00:07]}  e3 {[%clk 0:00:12]} 64. Kf4 {[%clk 0:00:08]}  e2 {[%clk 0:00:13]} 0-1


[Site "https://www.chess.com"]

[Event "Titled Tuesday Blitz August 24 2021"]
[White "Iskusnyh, Sergei"]
[Black "Lazavik, Denis"]
[WhiteFideId "4120027"]
[BlackFideId "13515110"]
[WhiteElo "2492"]
[BlackElo "2436"]
[Result "1-0"]
[Round "05"]
[TimeControl "180+1"]
[Date "2021.08.24"]
[WhiteClock "0:00:20"]
[BlackClock "0:00:01"]

1. d4 {[%clk 0:03:00]}  Nf6 {[%clk 0:02:59]} 2. c4 {[%clk 0:02:59]}  e6 {[%clk 0:02:59]} 3. g3 {[%clk 0:02:56]}  d5 {[%clk 0:02:58]} 4. Bg2 {[%clk 0:02:55]}  Be7 {[%clk 0:02:59]} 5. Nf3 {[%clk 0:02:55]}  O-O {[%clk 0:02:59]} 6. O-O {[%clk 0:02:56]}  dxc4 {[%clk 0:02:59]} 7. Qa4 {[%clk 0:02:55]}  a6 {[%clk 0:02:59]} 8. Qxc4 {[%clk 0:02:56]}  b5 {[%clk 0:03:00]} 9. Qc2 {[%clk 0:02:56]}  Bb7 {[%clk 0:03:00]} 10. Bd2 {[%clk 0:02:57]}  Be4 {[%clk 0:02:59]} 11. Qc1 {[%clk 0:02:56]}  Nc6 {[%clk 0:02:59]} 12. Be3 {[%clk 0:02:41]}  Nb4 {[%clk 0:02:52]} 13. Nc3 {[%clk 0:02:38]}  Bb7 {[%clk 0:02:49]} 14. Rd1 {[%clk 0:02:32]}  Nbd5 {[%clk 0:02:37]} 15. Nxd5 {[%clk 0:02:29]}  Nxd5 {[%clk 0:02:35]} 16. Bg5 {[%clk 0:02:28]}  Rc8 {[%clk 0:02:14]} 17. Bxe7 {[%clk 0:01:43]}  Qxe7 {[%clk 0:02:15]} 18. Qc5 {[%clk 0:01:42]}  Qxc5 {[%clk 0:02:00]} 19. dxc5 {[%clk 0:01:41]}  Rfd8 {[%clk 0:01:59]} 20. a3 {[%clk 0:01:32]}  Kf8 {[%clk 0:01:54]} 21. Rd2 {[%clk 0:01:24]}  Ke7 {[%clk 0:01:53]} 22. Rad1 {[%clk 0:01:23]}  Nf6 {[%clk 0:01:52]} 23. Ne5 {[%clk 0:01:22]}  Bxg2 {[%clk 0:01:49]} 24. Kxg2 {[%clk 0:01:22]}  Rd5 {[%clk 0:01:41]} 25. Nc6+ {[%clk 0:01:18]}  Ke8 {[%clk 0:01:28]} 26. f3 {[%clk 0:01:10]}  Ra8 {[%clk 0:01:20]} 27. b4 {[%clk 0:01:04]}  Rxd2 {[%clk 0:01:15]} 28. Rxd2 {[%clk 0:01:03]}  Nd5 {[%clk 0:01:16]} 29. e4 {[%clk 0:01:00]}  Ne3+ {[%clk 0:01:16]} 30. Kf2 {[%clk 0:00:59]}  Nc4 {[%clk 0:01:17]} 31. Rd3 {[%clk 0:00:59]}  a5 {[%clk 0:01:17]} 32. g4 {[%clk 0:00:53]}  axb4 {[%clk 0:01:16]} 33. axb4 {[%clk 0:00:53]}  g5 {[%clk 0:01:11]} 34. Kg3 {[%clk 0:00:52]}  f6 {[%clk 0:01:08]} 35. h4 {[%clk 0:00:52]}  h6 {[%clk 0:01:07]} 36. hxg5 {[%clk 0:00:51]}  hxg5 {[%clk 0:01:07]} 37. Rd1 {[%clk 0:00:51]}  Ne5 {[%clk 0:01:02]} 38. Nxe5 {[%clk 0:00:47]}  fxe5 {[%clk 0:01:02]} 39. c6 {[%clk 0:00:40]}  Rd8 {[%clk 0:00:51]} 40. Rc1 {[%clk 0:00:40]}  Rd4 {[%clk 0:00:48]} 41. Rc5 {[%clk 0:00:39]}  Rxb4 {[%clk 0:00:48]} 42. Rxe5 {[%clk 0:00:40]}  Ke7 {[%clk 0:00:47]} 43. Rxg5 {[%clk 0:00:40]}  Rb1 {[%clk 0:00:46]} 44. e5 {[%clk 0:00:38]}  Kf7 {[%clk 0:00:38]} 45. Rh5 {[%clk 0:00:35]}  Kg7 {[%clk 0:00:38]} 46. Rh2 {[%clk 0:00:30]}  Rc1 {[%clk 0:00:19]} 47. Rb2 {[%clk 0:00:28]}  Rc5 {[%clk 0:00:20]} 48. f4 {[%clk 0:00:28]}  Kg6 {[%clk 0:00:20]} 49. Kh4 {[%clk 0:00:28]}  Kh6 {[%clk 0:00:16]} 50. Rb1 {[%clk 0:00:26]}  Kg6 {[%clk 0:00:16]} 51. Rb2 {[%clk 0:00:24]}  Kh6 {[%clk 0:00:14]} 52. g5+ {[%clk 0:00:25]}  Kg6 {[%clk 0:00:14]} 53. Kg4 {[%clk 0:00:25]}  Rxc6 {[%clk 0:00:11]} 54. Rxb5 {[%clk 0:00:25]}  Rc1 {[%clk 0:00:12]} 55. Rb8 {[%clk 0:00:23]}  Rg1+ {[%clk 0:00:12]} 56. Kf3 {[%clk 0:00:24]}  Rf1+ {[%clk 0:00:12]} 57. Ke3 {[%clk 0:00:24]}  Kh5 {[%clk 0:00:05]} 58. Rf8 {[%clk 0:00:22]}  c5 {[%clk 0:00:04]} 59. Rf6 {[%clk 0:00:21]}  Kg4 {[%clk 0:00:02]} 60. g6 {[%clk 0:00:21]}  Kh5 {[%clk 0:00:02]} 61. Rxe6 {[%clk 0:00:21]}  c4 {[%clk 0:00:01]} 62. Rf6 {[%clk 0:00:20]}  c3 {[%clk 0:00:01]} 63. Kd3 {[%clk 0:00:20]} 1-0


[Site "https://www.chess.com"]

[Event "Titled Tuesday Blitz August 24 2021"]
[White "Jakubowski, Krzysztof"]
[Black "Postny, Evgeny"]
[WhiteFideId "1112848"]
[BlackFideId "2804344"]
[WhiteElo "2414"]
[BlackElo "2521"]
[Result "0-1"]
[Round "05"]
[TimeControl "180+1"]
[Date "2021.08.24"]
[WhiteClock "0:00:02"]
[BlackClock "0:00:11"]

1. e4 {[%clk 0:03:00]}  e5 {[%clk 0:01:46]} 2. Nf3 {[%clk 0:02:58]}  Nc6 {[%clk 0:01:47]} 3. Bc4 {[%clk 0:02:58]}  Nf6 {[%clk 0:01:45]} 4. d3 {[%clk 0:02:57]}  Be7 {[%clk 0:01:45]} 5. O-O {[%clk 0:02:56]}  d6 {[%clk 0:01:45]} 6. a4 {[%clk 0:02:52]}  O-O {[%clk 0:01:46]} 7. h3 {[%clk 0:02:50]}  Na5 {[%clk 0:01:45]} 8. Ba2 {[%clk 0:02:49]}  c5 {[%clk 0:01:45]} 9. Nbd2 {[%clk 0:02:46]}  Be6 {[%clk 0:01:45]} 10. Nc4 {[%clk 0:02:35]}  Nxc4 {[%clk 0:01:41]} 11. Bxc4 {[%clk 0:02:34]}  Bxc4 {[%clk 0:01:37]} 12. dxc4 {[%clk 0:02:35]}  Nxe4 {[%clk 0:01:37]} 13. Qd5 {[%clk 0:02:35]}  Nf6 {[%clk 0:01:37]} 14. Qxb7 {[%clk 0:02:35]}  Rb8 {[%clk 0:01:23]} 15. Qxa7 {[%clk 0:02:08]}  Qc8 {[%clk 0:01:16]} 16. Qxe7 {[%clk 0:02:05]}  Qc6 {[%clk 0:01:09]} 17. Bg5 {[%clk 0:01:50]}  Ne4 {[%clk 0:01:00]} 18. Rfe1 {[%clk 0:01:35]}  Rfe8 {[%clk 0:00:51]} 19. Rxe4 {[%clk 0:01:10]}  Rxe7 {[%clk 0:00:50]} 20. Bxe7 {[%clk 0:01:08]}  Qxe4 {[%clk 0:00:49]} 21. Bxd6 {[%clk 0:01:07]}  Rxb2 {[%clk 0:00:47]} 22. Bxe5 {[%clk 0:00:45]}  Rxc2 {[%clk 0:00:46]} 23. Rd1 {[%clk 0:00:21]}  h6 {[%clk 0:00:38]} 24. Rd8+ {[%clk 0:00:18]}  Kh7 {[%clk 0:00:38]} 25. Rd7 {[%clk 0:00:19]}  Qxc4 {[%clk 0:00:31]} 26. a5 {[%clk 0:00:16]}  Ra2 {[%clk 0:00:26]} 27. Ra7 {[%clk 0:00:11]}  Qe6 {[%clk 0:00:18]} 28. Kh2 {[%clk 0:00:09]}  Rxf2 {[%clk 0:00:17]} 29. a6 {[%clk 0:00:09]}  Ra2 {[%clk 0:00:15]} 30. Ra8 {[%clk 0:00:08]}  Rxa6 {[%clk 0:00:14]} 31. Rb8 {[%clk 0:00:07]}  Rc6 {[%clk 0:00:14]} 32. Bg3 {[%clk 0:00:06]}  Rc8 {[%clk 0:00:13]} 33. Rb2 {[%clk 0:00:05]}  c4 {[%clk 0:00:13]} 34. Rc2 {[%clk 0:00:05]}  c3 {[%clk 0:00:12]} 35. Nd4 {[%clk 0:00:05]}  Qe4 {[%clk 0:00:12]} 36. Bf2 {[%clk 0:00:04]}  Rc4 {[%clk 0:00:12]} 37. Re2 {[%clk 0:00:02]}  Rxd4 {[%clk 0:00:11]} 0-1


[Site "https://www.chess.com"]

[Event "Titled Tuesday Blitz August 24 2021"]
[White "Jobava, Baadur"]
[Black "Andreikin, Dmitry"]
[WhiteFideId "13601520"]
[BlackFideId "4158814"]
[WhiteElo "2748"]
[BlackElo "2782"]
[Result "1-0"]
[Round "05"]
[TimeControl "180+1"]
[Date "2021.08.24"]
[WhiteClock "0:00:23"]
[BlackClock "0:00:10"]

1. e4 {[%clk 0:03:00]}  c5 {[%clk 0:02:59]} 2. c4 {[%clk 0:03:00]}  Nc6 {[%clk 0:02:58]} 3. Ne2 {[%clk 0:03:00]}  e5 {[%clk 0:02:50]} 4. Nbc3 {[%clk 0:02:59]}  d6 {[%clk 0:02:49]} 5. g3 {[%clk 0:03:00]}  g6 {[%clk 0:02:48]} 6. Bg2 {[%clk 0:03:00]}  Bg7 {[%clk 0:02:49]} 7. d3 {[%clk 0:03:00]}  Nge7 {[%clk 0:02:49]} 8. O-O {[%clk 0:03:00]}  O-O {[%clk 0:02:50]} 9. Nd5 {[%clk 0:03:00]}  Nxd5 {[%clk 0:02:49]} 10. cxd5 {[%clk 0:03:01]}  Nd4 {[%clk 0:02:49]} 11. Nxd4 {[%clk 0:03:01]}  cxd4 {[%clk 0:02:50]} 12. Qb3 {[%clk 0:03:02]}  Qb6 {[%clk 0:02:46]} 13. Qxb6 {[%clk 0:03:01]}  axb6 {[%clk 0:02:46]} 14. Bd2 {[%clk 0:03:02]}  Bd7 {[%clk 0:02:36]} 15. Bb4 {[%clk 0:03:01]}  Bb5 {[%clk 0:02:29]} 16. Bxd6 {[%clk 0:02:59]}  Bxd3 {[%clk 0:02:27]} 17. Rfd1 {[%clk 0:02:27]}  Rfd8 {[%clk 0:02:27]} 18. Bxe5 {[%clk 0:02:26]}  Bxe4 {[%clk 0:02:13]} 19. Bxg7 {[%clk 0:02:24]}  Bxg2 {[%clk 0:02:14]} 20. Kxg2 {[%clk 0:02:24]}  Kxg7 {[%clk 0:02:14]} 21. Rxd4 {[%clk 0:02:24]}  Ra5 {[%clk 0:01:48]} 22. d6 {[%clk 0:02:23]}  Kf6 {[%clk 0:01:40]} 23. a4 {[%clk 0:02:00]}  Ke6 {[%clk 0:01:34]} 24. Rad1 {[%clk 0:01:50]}  Re5 {[%clk 0:01:26]} 25. Kf3 {[%clk 0:01:40]}  b5 {[%clk 0:01:19]} 26. a5 {[%clk 0:01:37]}  Rf5+ {[%clk 0:01:10]} 27. Ke3 {[%clk 0:01:36]}  Re5+ {[%clk 0:01:09]} 28. Kf3 {[%clk 0:01:24]}  Rf5+ {[%clk 0:01:09]} 29. Kg2 {[%clk 0:01:12]}  Re5 {[%clk 0:01:09]} 30. h4 {[%clk 0:01:08]}  h5 {[%clk 0:01:05]} 31. R1d2 {[%clk 0:01:04]}  Rd7 {[%clk 0:01:02]} 32. b4 {[%clk 0:01:03]}  Re1 {[%clk 0:00:52]} 33. Kf3 {[%clk 0:01:01]}  Re5 {[%clk 0:00:47]} 34. R2d3 {[%clk 0:00:57]}  Rf5+ {[%clk 0:00:36]} 35. Ke2 {[%clk 0:00:57]}  Re5+ {[%clk 0:00:37]} 36. Kd2 {[%clk 0:00:57]}  Kf6 {[%clk 0:00:34]} 37. Rd5 {[%clk 0:00:54]}  Ke6 {[%clk 0:00:30]} 38. R5d4 {[%clk 0:00:54]}  Kf6 {[%clk 0:00:30]} 39. f4 {[%clk 0:00:52]}  Rf5 {[%clk 0:00:19]} 40. Ke3 {[%clk 0:00:52]}  Kg7 {[%clk 0:00:17]} 41. Rd5 {[%clk 0:00:49]}  Kf6 {[%clk 0:00:10]} 42. Rxf5+ {[%clk 0:00:46]}  Kxf5 {[%clk 0:00:10]} 43. Rd5+ {[%clk 0:00:46]}  Kg4 {[%clk 0:00:11]} 44. Kf2 {[%clk 0:00:27]}  Kh3 {[%clk 0:00:11]} 45. Kf3 {[%clk 0:00:23]}  f5 {[%clk 0:00:10]} 46. Rd2 {[%clk 0:00:23]} 1-0


[Site "https://www.chess.com"]

[Event "Titled Tuesday Blitz August 24 2021"]
[White "Kim, Sergey"]
[Black "Urazayev, Arystanbek"]
[WhiteFideId "13700570"]
[BlackFideId "13709810"]
[WhiteElo "2476"]
[BlackElo "2321"]
[Result "0-1"]
[Round "05"]
[TimeControl "180+1"]
[Date "2021.08.24"]
[WhiteClock "0:00:02"]
[BlackClock "0:01:31"]

1. d4 {[%clk 0:03:00]}  d5 {[%clk 0:03:00]} 2. c4 {[%clk 0:03:00]}  e6 {[%clk 0:03:00]} 3. Nc3 {[%clk 0:03:00]}  Nf6 {[%clk 0:03:01]} 4. Nf3 {[%clk 0:03:00]}  a6 {[%clk 0:03:00]} 5. cxd5 {[%clk 0:02:58]}  exd5 {[%clk 0:03:01]} 6. Bg5 {[%clk 0:02:58]}  Be6 {[%clk 0:03:02]} 7. e3 {[%clk 0:02:58]}  Nbd7 {[%clk 0:03:03]} 8. Bd3 {[%clk 0:02:58]}  c6 {[%clk 0:03:03]} 9. Qc2 {[%clk 0:02:57]}  Bd6 {[%clk 0:03:04]} 10. O-O {[%clk 0:02:55]}  Qc7 {[%clk 0:03:04]} 11. e4 {[%clk 0:02:33]}  dxe4 {[%clk 0:03:00]} 12. Nxe4 {[%clk 0:02:33]}  Nxe4 {[%clk 0:03:01]} 13. Bxe4 {[%clk 0:02:33]}  h6 {[%clk 0:03:01]} 14. Bh4 {[%clk 0:02:28]}  O-O {[%clk 0:02:59]} 15. Rfe1 {[%clk 0:02:15]}  Rfe8 {[%clk 0:02:59]} 16. a3 {[%clk 0:02:08]}  Nb6 {[%clk 0:02:58]} 17. Bg3 {[%clk 0:02:03]}  Bxg3 {[%clk 0:02:58]} 18. hxg3 {[%clk 0:02:02]}  Nd5 {[%clk 0:02:59]} 19. Ne5 {[%clk 0:01:59]}  Rad8 {[%clk 0:02:59]} 20. Rad1 {[%clk 0:01:57]}  Nf6 {[%clk 0:02:56]} 21. Bf5 {[%clk 0:01:56]}  Qb6 {[%clk 0:02:48]} 22. Bxe6 {[%clk 0:01:39]}  Rxe6 {[%clk 0:02:49]} 23. Nf3 {[%clk 0:01:38]}  Rde8 {[%clk 0:02:46]} 24. Re5 {[%clk 0:01:32]}  Nd5 {[%clk 0:02:23]} 25. Rde1 {[%clk 0:01:29]}  Nc7 {[%clk 0:02:23]} 26. R1e4 {[%clk 0:01:21]}  Rd8 {[%clk 0:02:10]} 27. Rg4 {[%clk 0:01:08]}  Rxe5 {[%clk 0:02:09]} 28. dxe5 {[%clk 0:01:06]}  Ne6 {[%clk 0:02:10]} 29. b4 {[%clk 0:01:02]}  Rd5 {[%clk 0:02:06]} 30. Kh2 {[%clk 0:00:54]}  Qd8 {[%clk 0:02:06]} 31. Qf5 {[%clk 0:00:50]}  Rd1 {[%clk 0:01:52]} 32. Qc2 {[%clk 0:00:32]}  Qd5 {[%clk 0:01:45]} 33. Nh4 {[%clk 0:00:19]}  Qd3 {[%clk 0:01:33]} 34. Qxd3 {[%clk 0:00:14]}  Rxd3 {[%clk 0:01:34]} 35. a4 {[%clk 0:00:14]}  Ra3 {[%clk 0:01:34]} 36. a5 {[%clk 0:00:14]}  c5 {[%clk 0:01:35]} 37. bxc5 {[%clk 0:00:13]}  Nxc5 {[%clk 0:01:35]} 38. Nf5 {[%clk 0:00:10]}  Ne6 {[%clk 0:01:34]} 39. Nxh6+ {[%clk 0:00:09]}  Kf8 {[%clk 0:01:34]} 40. Nf5 {[%clk 0:00:08]}  Rxa5 {[%clk 0:01:34]} 41. Rc4 {[%clk 0:00:08]}  Rc5 {[%clk 0:01:32]} 42. Rxc5 {[%clk 0:00:03]}  Nxc5 {[%clk 0:01:33]} 43. f4 {[%clk 0:00:02]}  a5 {[%clk 0:01:33]} 44. Kg1 {[%clk 0:00:02]}  a4 {[%clk 0:01:33]} 45. Nd4 {[%clk 0:00:02]}  a3 {[%clk 0:01:31]} 46. Nc2 {[%clk 0:00:02]}  a2 {[%clk 0:01:31]} 0-1


[Site "https://www.chess.com"]

[Event "Titled Tuesday Blitz August 24 2021"]
[White "Kowalczyk, Pawel"]
[Black "Holt, Conrad"]
[WhiteFideId "1130641"]
[BlackFideId "2034387"]
[WhiteElo "2325"]
[BlackElo "2586"]
[Result "0-1"]
[Round "05"]
[TimeControl "180+1"]
[Date "2021.08.24"]
[WhiteClock "0:01:00"]
[BlackClock "0:01:15"]

1. a3 {[%clk 0:03:00]}  d5 {[%clk 0:02:57]} 2. b4 {[%clk 0:03:00]}  e5 {[%clk 0:02:56]} 3. Bb2 {[%clk 0:03:01]}  Nd7 {[%clk 0:02:57]} 4. e3 {[%clk 0:03:01]}  Ngf6 {[%clk 0:02:56]} 5. Nf3 {[%clk 0:03:01]}  Bd6 {[%clk 0:02:55]} 6. c4 {[%clk 0:03:02]}  e4 {[%clk 0:02:54]} 7. Nd4 {[%clk 0:03:01]}  dxc4 {[%clk 0:02:52]} 8. Bxc4 {[%clk 0:03:00]}  Ne5 {[%clk 0:02:51]} 9. Be2 {[%clk 0:02:59]}  Bg4 {[%clk 0:02:40]} 10. O-O {[%clk 0:02:56]}  h5 {[%clk 0:02:38]} 11. h3 {[%clk 0:02:53]}  Nd3 {[%clk 0:02:36]} 12. Bc3 {[%clk 0:02:44]}  Qd7 {[%clk 0:02:31]} 13. hxg4 {[%clk 0:02:38]}  hxg4 {[%clk 0:02:29]} 14. g3 {[%clk 0:02:37]}  O-O-O {[%clk 0:02:09]} 15. Kg2 {[%clk 0:02:37]}  Rh3 {[%clk 0:01:55]} 16. Nf5 {[%clk 0:01:44]}  Qxf5 {[%clk 0:01:46]} 17. Bxf6 {[%clk 0:01:44]}  Rdh8 {[%clk 0:01:41]} 18. Bh4 {[%clk 0:01:40]}  R8xh4 {[%clk 0:01:39]} 19. gxh4 {[%clk 0:01:41]}  Rh2+ {[%clk 0:01:15]} 20. Kg1 {[%clk 0:01:40]}  Nxf2 {[%clk 0:01:15]} 21. Bxg4 {[%clk 0:01:39]}  Nh3+ {[%clk 0:01:15]} 22. Bxh3 {[%clk 0:01:38]}  Qxh3 {[%clk 0:01:15]} 23. Qg4+ {[%clk 0:01:00]} 0-1


[Site "https://www.chess.com"]

[Event "Titled Tuesday Blitz August 24 2021"]
[White "Krivonosov, Oleg"]
[Black "ketster"]
[WhiteFideId "11600349"]
[WhiteElo "2469"]
[BlackElo "2489"]
[Result "1-0"]
[Round "05"]
[TimeControl "180+1"]
[Date "2021.08.24"]
[WhiteClock "0:00:55"]
[BlackClock "0:00:03"]

1. Nf3 {[%clk 0:03:00]}  Nf6 {[%clk 0:02:48]} 2. c4 {[%clk 0:03:00]}  e6 {[%clk 0:02:46]} 3. g3 {[%clk 0:02:59]}  d5 {[%clk 0:02:46]} 4. d4 {[%clk 0:02:58]}  Bb4+ {[%clk 0:02:44]} 5. Bd2 {[%clk 0:02:57]}  Be7 {[%clk 0:02:45]} 6. Bg2 {[%clk 0:02:57]}  O-O {[%clk 0:02:45]} 7. O-O {[%clk 0:02:56]}  Nbd7 {[%clk 0:02:44]} 8. Qc2 {[%clk 0:02:56]}  c6 {[%clk 0:02:42]} 9. Bf4 {[%clk 0:02:54]}  Ne4 {[%clk 0:02:40]} 10. Nc3 {[%clk 0:02:53]}  f5 {[%clk 0:02:39]} 11. Ne5 {[%clk 0:02:52]}  g5 {[%clk 0:02:31]} 12. Nxd7 {[%clk 0:02:51]}  Bxd7 {[%clk 0:02:27]} 13. Be5 {[%clk 0:02:51]}  Bf6 {[%clk 0:02:27]} 14. Nxe4 {[%clk 0:02:47]}  fxe4 {[%clk 0:01:36]} 15. Bxf6 {[%clk 0:02:41]}  Qxf6 {[%clk 0:01:36]} 16. Rad1 {[%clk 0:02:41]}  g4 {[%clk 0:01:12]} 17. f4 {[%clk 0:02:33]}  Be8 {[%clk 0:01:04]} 18. e3 {[%clk 0:02:31]}  Bg6 {[%clk 0:01:02]} 19. c5 {[%clk 0:02:27]}  h5 {[%clk 0:01:01]} 20. Rfe1 {[%clk 0:02:25]}  h4 {[%clk 0:00:59]} 21. b4 {[%clk 0:02:24]}  Rf7 {[%clk 0:00:59]} 22. a4 {[%clk 0:02:23]}  Rh7 {[%clk 0:00:57]} 23. b5 {[%clk 0:02:22]}  Be8 {[%clk 0:00:54]} 24. Rb1 {[%clk 0:02:20]}  hxg3 {[%clk 0:00:53]} 25. hxg3 {[%clk 0:02:19]}  Qh6 {[%clk 0:00:52]} 26. Kf2 {[%clk 0:02:17]}  Qg6 {[%clk 0:00:52]} 27. Rh1 {[%clk 0:02:15]}  Kg7 {[%clk 0:00:52]} 28. Rxh7+ {[%clk 0:02:13]}  Qxh7 {[%clk 0:00:52]} 29. Rh1 {[%clk 0:02:09]}  Qg6 {[%clk 0:00:52]} 30. Qb2 {[%clk 0:02:08]}  Bd7 {[%clk 0:00:52]} 31. Qb4 {[%clk 0:02:05]}  Qe8 {[%clk 0:00:35]} 32. Rb1 {[%clk 0:02:02]}  a5 {[%clk 0:00:30]} 33. bxa6 {[%clk 0:01:53]}  Rxa6 {[%clk 0:00:30]} 34. Qxb7 {[%clk 0:01:45]}  Rxa4 {[%clk 0:00:29]} 35. Rb2 {[%clk 0:01:40]}  Ra8 {[%clk 0:00:28]} 36. Qc7 {[%clk 0:01:39]}  Qd8 {[%clk 0:00:22]} 37. Qe5+ {[%clk 0:01:36]}  Qf6 {[%clk 0:00:22]} 38. Qd6 {[%clk 0:01:36]}  Rd8 {[%clk 0:00:19]} 39. Rb7 {[%clk 0:01:32]}  Qf7 {[%clk 0:00:19]} 40. Bf1 {[%clk 0:01:27]}  Kg6 {[%clk 0:00:16]} 41. Qe5 {[%clk 0:01:22]}  Qf6 {[%clk 0:00:14]} 42. Qc7 {[%clk 0:01:14]}  Qe7 {[%clk 0:00:14]} 43. Be2 {[%clk 0:01:10]}  Kg7 {[%clk 0:00:03]} 44. Bxg4 {[%clk 0:01:07]}  Kg6 {[%clk 0:00:03]} 45. Be2 {[%clk 0:01:06]}  Kg7 {[%clk 0:00:04]} 46. Qe5+ {[%clk 0:01:05]}  Qf6 {[%clk 0:00:03]} 47. g4 {[%clk 0:01:01]}  Qxe5 {[%clk 0:00:03]} 48. dxe5 {[%clk 0:01:02]}  Kg6 {[%clk 0:00:04]} 49. Rc7 {[%clk 0:01:00]}  Kg7 {[%clk 0:00:03]} 50. f5 {[%clk 0:00:58]}  Kf7 {[%clk 0:00:04]} 51. f6 {[%clk 0:00:57]}  Kg6 {[%clk 0:00:03]} 52. Kg3 {[%clk 0:00:57]}  Be8 {[%clk 0:00:03]} 53. Rg7+ {[%clk 0:00:55]}  Kh6 {[%clk 0:00:03]} 54. g5# {[%clk 0:00:55]} 1-0


[Site "https://www.chess.com"]

[Event "Titled Tuesday Blitz August 24 2021"]
[White "Maiorov, Nikita"]
[Black "Weetik, Vjacheslav"]
[WhiteFideId "13501720"]
[BlackFideId "4153472"]
[WhiteElo "2440"]
[BlackElo "2469"]
[Result "0-1"]
[Round "05"]
[TimeControl "180+1"]
[Date "2021.08.24"]
[WhiteClock "0:00:01"]
[BlackClock "0:00:47"]

1. d4 {[%clk 0:03:00]}  Nf6 {[%clk 0:02:53]} 2. c4 {[%clk 0:02:59]}  g6 {[%clk 0:02:47]} 3. g3 {[%clk 0:02:58]}  c6 {[%clk 0:02:47]} 4. Bg2 {[%clk 0:02:58]}  d5 {[%clk 0:02:48]} 5. e3 {[%clk 0:02:57]}  Bg7 {[%clk 0:02:46]} 6. Ne2 {[%clk 0:02:57]}  O-O {[%clk 0:02:46]} 7. O-O {[%clk 0:02:57]}  Nbd7 {[%clk 0:02:38]} 8. b3 {[%clk 0:02:53]}  e5 {[%clk 0:02:25]} 9. dxe5 {[%clk 0:02:41]}  Nxe5 {[%clk 0:02:24]} 10. Ba3 {[%clk 0:02:29]}  Re8 {[%clk 0:02:23]} 11. cxd5 {[%clk 0:02:15]}  Nxd5 {[%clk 0:02:10]} 12. Nd4 {[%clk 0:02:07]}  Bg4 {[%clk 0:02:07]} 13. Qc2 {[%clk 0:02:04]}  Rc8 {[%clk 0:01:58]} 14. Nd2 {[%clk 0:01:04]}  c5 {[%clk 0:01:57]} 15. Nb5 {[%clk 0:01:03]}  Nb4 {[%clk 0:01:52]} 16. Bxb4 {[%clk 0:00:22]}  cxb4 {[%clk 0:01:53]} 17. Nc4 {[%clk 0:00:21]}  Nxc4 {[%clk 0:01:42]} 18. bxc4 {[%clk 0:00:21]}  Bxa1 {[%clk 0:01:42]} 19. Rxa1 {[%clk 0:00:21]}  Qf6 {[%clk 0:01:30]} 20. Nd4 {[%clk 0:00:19]}  b6 {[%clk 0:01:25]} 21. Qb3 {[%clk 0:00:18]}  a5 {[%clk 0:01:24]} 22. h3 {[%clk 0:00:17]}  Be6 {[%clk 0:01:19]} 23. Rc1 {[%clk 0:00:16]}  Rc5 {[%clk 0:01:17]} 24. a3 {[%clk 0:00:15]}  Rec8 {[%clk 0:01:08]} 25. Bf1 {[%clk 0:00:13]}  b5 {[%clk 0:01:03]} 26. axb4 {[%clk 0:00:13]}  bxc4 {[%clk 0:01:00]} 27. Qc3 {[%clk 0:00:07]}  axb4 {[%clk 0:01:00]} 28. Qxb4 {[%clk 0:00:07]}  Bd5 {[%clk 0:01:00]} 29. Qc3 {[%clk 0:00:05]}  Kg7 {[%clk 0:00:56]} 30. Re1 {[%clk 0:00:04]}  Re8 {[%clk 0:00:49]} 31. e4 {[%clk 0:00:01]}  Rxe4 {[%clk 0:00:47]} 0-1


[Site "https://www.chess.com"]